Workbook

Sheet Для заполнения
A1: Форма перечня спортивной инфраструктуры всех форм собственности, независимо от их организационно-правовой формы, действующие и находящиеся на реконструкции или капитальном ремонте, отдельно стоящие или входящие в состав комплексных сооружений
A2: (информация о спортивной инфраструктуре, их площади, ЕПС, ФЗ и МС должна соответствовать сведениям, указанным в разделе 3 формы № 1 –ФК)
A4: № п/п | B4: Наименование спортивного сооружения с указанием принадлежности | C4: Адрес спортивного сооружения | D4: длина | E4: ширина | F4: Площадь спортивного сооружения, м2 (указывается площадь спортивных залов, плоскостных спортивных сооружений, площадь зеркала воды плавательных бассейнов) | G4: Единовременная пропускная способность (ЕПС) | H4: Загруженность (ФЗ), чел. | I4: мощность (МС), чел | J4: собственность (муниципальная, региональная, федеральная, иная
A5: СПОРТИВНЫЕ ЗАЛЫ
A6: 1 | B6: "Зал бокса" при МАУ ДО ДЮСШ | C6: 618250, Пермский край, ул.им.газ. "Правда" 38а | D6: 23.55 | E6: 11.65 | F6: =D6*E6 -> 274.3575 | G6: 15 | H6: =55*2*6*52 -> 34320 | I6: =15*7*365 -> 38325 | J6: муниципальная
A7: ПЛОСКОСТНЫЕ СПОРТИВНЫЕ СООРУЖЕНИЯ
A8: 2 | B8: Уличная площадка для занятий физической культурой при Ледовой арене | C8: 61825, Пермский край, г. Губаха, пер. Мечты, 3 | D8: 6 | E8: 5.5 | F8: =D8*E8 -> 33 | G8: 17 | H8: =30*2*7*52 -> 21840 | I8: =17*12*365 -> 74460 | J8: муниципальная
A9: 3 | B9: Уличная площадка для занятий физической культурой при МАУ ДО ДЮСШ | C9: 618250, Пермский край, ул.им.газ. "Правда" 38а | D9: 15 | E9: 10 | F9: =D9*E9 -> 150 | G9: 17 | H9: =30*2*7*52 -> 21840 | I9: =17*12*365 -> 74460 | J9: муниципальная
A10: ДРУГИЕ
A11: 4 | B11: Помещение для занятий ОФП при МАУ ДО ДЮСШ | C11: 618250, Пермский край, пр. Ленина 63 | D11: 14.16 | E11: 5.5 | F11: =D11*E11 -> 77.88 | G11: 12 | H11: =70*1*7*52 -> 25480 | I11: =12*6*365 -> 26280 | J11: муниципальная
A12: 5 | B12: Помещение для занятий ОФП при МАУ ДО ДЮСШ | C12: 618250, Пермский край, пр. Ленина 63 | D12: 16.68 | E12: 5.5 | F12: =D12*E12 -> 91.74 | G12: 12 | H12: =70*1*7*52 -> 25480 | I12: =12*6*365 -> 26280 | J12: муниципальная
A13: 6 | B13: Помещение для занятий на силовых тренажерах при МАУ ДО ДЮСШ | C13: 618250, Пермский край, пр. Ленина 63 | D13: 11.68 | E13: 5.51 | F13: 64.3568 | G13: 18 | H13: =20*1*7*52 -> 7280 | I13: =18*4*365 -> 26280 | J13: муниципальная
A14: ИТОГО | F14: =F13+F12+F11+F9+F8+F6 -> 691.3343 | G14: =G13+G12+G11+G9+G8+G6 -> 91 | H14: =H13+H12+H11+H9+H8+H6 -> 136240 | I14: =I13+I12+I11+I9+I8+I6 -> 266085
B15: Директор МАУ ДО ДЮСШ | E15: К.В. Макаров
B16: (должность) | E16: (Ф.И.О.) | H16: (подпись)
A18: ФИО исполнителя, телефон (с кодом) | D18: 8-34-248-333-07

Sheet Для заполнения 2
A1: Крупные спортивные объекты на территории _____________ Пермского края
A4: № п/п | B4: Наименование спортивного сооружения с указанием принадлежности | C4: Адрес спортивного сооружения | D4: Единовременная пропускная способность (ЕПС) | E4: собственность (муниципальная, региональная, федеральная, иная | F4: Состояние объекта (удовлетворительное, аварийное, отличное) | G4: Дата ввода объекта и дата последней реконструкции объекта | H4: Категория опасности (в соотвествии с паспортом безопасности) | I4: Дата утверждения паспорта безопасности | J4: Доступная среда для маломобильных категорий населения (обеспеченность объекта спорта необходимым инвентарем оборудованием, наличие пандуса) | K4: Включение объекта во Всероссийский реестр объектов сопрта(указать дату включения) | L4: Контактные данные руководителя объекта ( номер телефона, эл. почта)
A5: КРЫТЫЕ КАТКИ
A6: 1 | B6: ледовая арена | C6: 61825, Пермский край, г. Губаха, пер. Мечты, 3 | D6: 37 | E6: муниципальная | F6: отличное | G6: 2019-04-18 | H6: 2 категория | I6: 2019-06-10 | J6: доступна для моломобильных групп, пандус имеется | K6: 2019-10-08 | L6: 8-34-24-457-02, 40675@dr.ru
A7: ИТОГО
B10: Директор МАУ ДО ДЮСШ | E10: К.В. Макаров
B11: (должность) | E11: (Ф.И.О.) | H11: (подпись)
A15: ФИО исполнителя, телефон (с кодом) | D15: 8-34-248-333-07

Sheet Лист3
